bitfinex/quotes_SOLUSD_20240816
["timestamp","ask_amount","ask_price","bid_price","bid_amount"]
[1723795544865,15.2462,144.81,144.75,12.31462005]
[1723795545078,15.2462,144.81,144.74,40.0]
[1723795545079,15.2462,144.81,144.74,20.0]
[1723795545387,15.2462,144.81,144.74,50.24]
[1723795545689,15.2462,144.81,144.75,2.07456305]
[1723795545881,15.2462,144.81,144.74,50.24]
[1723795546088,15.2462,144.81,144.75,2.07450726]
[1723795546295,15.2462,144.81,144.74,56.43900256]
[1723795546592,15.2462,144.81,144.75,2.07455021]
[1723795546890,15.2462,144.81,144.76,20.0]
[1723795548161,15.2462,144.81,144.76,30.24]
[1723795551592,15.2462,144.81,144.78,20.0]
[1723795553430,15.8995,144.84,144.78,20.0]
[1723795553700,15.8995,144.84,144.78,30.24]
[1723795553870,15.8995,144.84,144.79,1.3809798]
[1723795554074,15.8995,144.84,144.8,1.38097419]
[1723795554488,15.8995,144.84,144.78,30.24]
[1723795554801,15.8995,144.84,144.79,1.38097662]
[1723795554982,15.8995,144.84,144.8,1.38096255]
[1723795556397,15.8995,144.84,144.79,1.38095353]
[1723795557492,15.8995,144.84,144.8,20.0]
[1723795559578,15.8995,144.84,144.77,0.12549]
[1723795559579,15.7078,144.92,144.82,30.24]
[1723795559905,22.6084,144.92,144.85,20.0]
[1723795560093,22.6084,144.92,144.86,1.38046993]
[1723795560626,22.6084,144.92,144.87,20.0]
[1723795560920,22.6084,144.92,144.85,20.0]
[1723795561895,15.7078,144.92,144.85,20.0]
[1723795562199,6.9026,144.88,144.81,20.0]
[1723795562404,16.5742,144.87,144.82,20.0]
[1723795562574,33.7173,144.87,144.81,20.0]
[1723795562774,0.25098,144.86,144.78,20.0]
[1723795563416,0.25098,144.86,144.8,20.0]
[1723795563993,6.9036,144.85,144.78,20.0]
[1723795564390,0.25098,144.86,144.78,20.0]
[1723795564391,7.02879,144.86,144.8,20.0]
[1723795564732,7.02879,144.86,144.78,30.24]
[1723795564918,7.02879,144.86,144.79,20.0]
[1723795566017,7.02879,144.86,144.8,20.0]
[1723795568544,7.02879,144.86,144.79,20.0]
[1723795569237,7.02879,144.86,144.8,20.0]
[1723795570291,0.12549,144.86,144.8,20.0]
[1723795570495,16.5742,144.87,144.8,20.0]
[1723795570898,23.4769,144.87,144.8,20.0]
[1723795571700,7.02879,144.86,144.79,20.0]
[1723795572308,6.9043,144.84,144.79,20.0]
[1723795572524,6.9043,144.84,144.77,20.0]
[1723795572700,6.9038,144.85,144.78,20.0]
[1723795573006,6.9043,144.84,144.77,20.0]
[1723795573423,22.4257,144.79,144.74,7.2073239]
[1723795573610,22.4257,144.79,144.71,56.3838]
[1723795573611,15.519,144.79,144.71,56.3838]
[1723795573810,24.1526028,144.79,144.71,27.20249376]
[1723795574129,22.4256,144.79,144.71,27.20249376]
[1723795574338,6.9071,144.78,144.71,27.20249376]
[1723795574506,6.9076,144.77,144.71,27.20249376]
[1723795574834,6.9076,144.77,144.67,14.40429509]
[1723795574835,12.09276239,144.76,144.67,22.07406737]
[1723795575011,10.36549,144.76,144.67,20.0]
[1723795575329,6.9085,144.75,144.67,20.0]
[1723795576015,10.36549,144.76,144.67,20.0]
[1723795576211,6.909,144.74,144.66,17.44221146]
[1723795576418,17.27369,144.76,144.66,17.44221146]
[1723795576613,10.36549,144.76,144.66,17.44221146]
[1723795577015,0.12549,144.76,144.69,20.0]
[1723795577332,20.12549,144.77,144.69,20.0]
[1723795578705,20.12549,144.77,144.68,10.24]
[1723795578706,0.12549,144.76,144.68,10.24]
[1723795579016,10.36549,144.76,144.68,10.24]
[1723795579214,0.12549,144.75,144.68,10.24]
[1723795579720,1.85307532,144.75,144.67,20.0]
[1723795579923,7.03399,144.75,144.68,20.0]
[1723795580546,0.12549,144.75,144.67,40.0]
[1723795582243,0.12549,144.75,144.68,1.38206986]
[1723795582418,26.9076,144.77,144.68,10.24]
[1723795582620,0.12549,144.76,144.68,10.24]
[1723795583305,26.9076,144.77,144.69,0.12549]
[1723795587342,26.9076,144.77,144.69,20.12549]
[1723795588126,26.9076,144.77,144.69,0.12549]
[1723795589227,20.0,144.77,144.69,0.12549]
[1723795590362,26.9076,144.77,144.68,10.24]
[1723795590540,0.12549,144.76,144.68,10.24]
[1723795591341,7.03359,144.76,144.68,10.24]
[1723795593747,17.27359,144.76,144.67,57.57739093]
[1723795594053,16.654,144.75,144.67,57.57739093]
[1723795594227,23.5627,144.75,144.67,47.21190093]
[1723795594434,0.12549,144.74,144.67,47.21190093]
[1723795594869,0.12549,144.74,144.68,1.3821308]
[1723795595066,16.654,144.75,144.68,1.3821308]
[1723795595439,16.654,144.75,144.67,47.21190093]
[1723795596260,17.27449,144.74,144.67,8.59397557]
[1723795596448,0.12549,144.73,144.65,20.0]
[1723795597543,7.03489,144.73,144.65,20.0]
[1723795597737,7.03489,144.73,144.66,20.0]
[1723795598352,6.4826,144.72,144.66,20.0]
[1723795598868,15.412,144.71,144.66,20.0]
[1723795601973,15.412,144.71,144.67,21.38220834]
[1723795602138,15.412,144.71,144.67,20.0]
[1723795606771,15.0006,144.75,144.67,20.0]
[1723795606945,15.0006,144.75,144.68,20.0]
[1723795607150,21.909,144.75,144.68,20.0]
[1723795608775,15.0006,144.75,144.69,20.0]
[1723795609971,15.0006,144.75,144.69,21.38210339]
[1723795611163,15.0006,144.75,144.69,20.0]
[1723795612281,15.0006,144.75,144.69,21.38197166]
[1723795612668,15.0006,144.75,144.69,20.0]
[1723795613383,15.0006,144.75,144.69,21.38198022]
[1723795614164,15.0006,144.75,144.69,20.0]
[1723795614897,15.0006,144.75,144.7,1.38194563]
[1723795615889,15.0006,144.75,144.69,20.0]
[1723795616097,15.0006,144.75,144.7,1.38187184]
[1723795616400,15.0006,144.75,144.69,20.0]
[1723795616989,15.0006,144.75,144.7,1.38185083]
[1723795617159,15.0006,144.75,144.69,22.07517708]
[1723795617362,15.0006,144.75,144.7,2.07517708]
[1723795617571,15.0006,144.75,144.69,20.0]
[1723795617792,15.0006,144.75,144.7,2.07522213]
[1723795617997,15.0006,144.75,144.71,20.0]
[1723795618359,15.0006,144.75,144.72,2.07503348]
[1723795618559,15.0006,144.75,144.71,20.0]
[1723795618796,15.0006,144.75,144.72,2.07503851]
[1723795618959,15.0006,144.75,144.71,20.0]
[1723795619170,15.0006,144.75,144.72,2.07504138]
[1723795619399,15.0006,144.75,144.73,2.07504076]
[1723795619596,15.0006,144.75,144.71,20.0]
[1723795619770,15.0006,144.75,144.72,2.07504192]
[1723795619972,15.0006,144.75,144.73,2.07504192]
[1723795620205,22.7532,144.79,144.71,20.0]
[1723795620502,22.7532,144.79,144.72,30.78984827]
[1723795620801,22.7532,144.79,144.73,8.26855494]
[1723795620965,22.7532,144.79,144.74,2.07480956]
[1723795621165,22.7532,144.79,144.75,2.07480956]
[1723795621400,22.7532,144.79,144.72,21.79921025]
[1723795621401,22.7532,144.79,144.73,26.19252031]
[1723795621598,16.1173,144.79,144.74,8.26667844]
[1723795621770,16.1173,144.79,144.75,2.07477346]
[1723795621974,16.1173,144.79,144.74,10.24]
[1723795622188,16.1173,144.79,144.75,2.07467653]
[1723795622376,16.1173,144.79,144.74,30.24]
[1723795622588,16.1173,144.79,144.75,2.07453175]
[1723795622899,16.1173,144.79,144.76,22.07453175]
[1723795623105,16.1173,144.79,144.74,10.24]
[1723795623106,16.1173,144.79,144.74,30.24]
[1723795623274,16.1173,144.79,144.75,2.07451406]
[1723795623475,16.1173,144.79,144.76,20.0]
[1723795626610,16.1173,144.79,144.74,30.24]
[1723795627416,16.1173,144.79,144.72,26.19100793]
[1723795627595,16.1173,144.79,144.73,22.0745573]
[1723795627800,16.1173,144.79,144.73,20.0]
[1723795628893,18.87446204,144.78,144.73,2.07475626]
[1723795629091,6.9076,144.77,144.72,2.07483506]
[1723795629309,7.03309,144.77,144.71,2.07483506]
[1723795629512,7.03309,144.77,144.68,23.63646488]
[1723795629722,17.27309,144.77,144.69,22.07513785]
[1723795629906,17.27309,144.77,144.7,2.07513785]
[1723795630220,17.27309,144.77,144.69,20.0]
[1723795630385,17.27309,144.77,144.7,2.07515059]
[1723795630985,17.27309,144.77,144.69,20.0]
[1723795631221,17.27309,144.77,144.7,2.07518493]
[1723795631603,17.27309,144.77,144.69,20.0]
[1723795631809,17.27309,144.77,144.7,2.07513755]
[1723795632014,17.27309,144.77,144.69,20.0]
[1723795632322,17.27309,144.77,144.7,2.07514819]
[1723795632511,17.27309,144.77,144.69,20.0]
[1723795632694,17.27309,144.77,144.7,2.07508955]
[1723795632893,17.27309,144.77,144.69,20.0]
[1723795633219,17.27309,144.77,144.7,2.07513365]
[1723795633546,17.27309,144.77,144.69,20.0]
[1723795633708,17.27309,144.77,144.7,2.07514076]
[1723795633906,17.27309,144.77,144.69,20.0]
[1723795634107,17.27309,144.77,144.7,2.07514108]
[1723795634312,17.27309,144.77,144.69,20.0]
[1723795634503,17.27309,144.77,144.7,2.07517687]
[1723795634697,10.36549,144.77,144.7,2.07517687]
[1723795634920,6.1873,144.78,144.71,22.07503401]
[1723795635103,6.1873,144.78,144.72,2.07503401]
[1723795635298,16.1173,144.79,144.73,23.4565906]
[1723795635519,16.1173,144.79,144.73,20.0]
[1723795636054,16.1173,144.79,144.73,42.07473045]
[1723795636200,16.1173,144.79,144.75,20.0]
[1723795644640,16.1173,144.79,144.75,21.38140351]
[1723795645538,16.1173,144.79,144.75,20.0]
[1723795646151,16.1173,144.79,144.74,12.31451486]
[1723795646152,16.1173,144.79,144.74,10.24]
[1723795648151,16.1173,144.79,144.74,12.31459197]
[1723795648465,16.0603,144.83,144.77,20.0]
[1723795648750,16.0603,144.83,144.79,20.0]
[1723795648920,16.0603,144.83,144.76,22.07421645]
[1723795649123,16.0603,144.83,144.77,20.0]
[1723795652355,26.3003,144.83,144.77,20.0]
[1723795652855,26.3003,144.83,144.75,22.07433703]
[1723795653255,26.3003,144.83,144.75,20.0]
[1723795653952,33.2049,144.83,144.75,20.0]
[1723795654173,0.12549,144.82,144.75,20.0]
[1723795655661,0.25098,144.82,144.75,2.07447299]
[1723795655831,0.25098,144.82,144.74,22.07447299]
[1723795656030,0.25098,144.82,144.75,2.07447299]
[1723795656257,6.2299,144.81,144.75,2.07447299]
[1723795656568,6.2299,144.81,144.74,20.0]
[1723795656732,13.1355,144.81,144.75,20.0]
[1723795656935,6.2299,144.81,144.75,20.0]
[1723795664069,6.2299,144.81,144.76,2.07446413]
[1723795664281,6.2299,144.81,144.75,20.0]
[1723795664574,6.2299,144.81,144.76,2.07446351]
[1723795664760,6.2299,144.81,144.75,20.0]
[1723795665074,6.2299,144.81,144.76,2.07446173]
[1723795665278,6.2299,144.81,144.75,20.0]
[1723795665480,6.2299,144.81,144.76,2.07446235]
[1723795665789,22.5205,144.86,144.78,30.24]
[1723795665944,22.5205,144.86,144.79,20.0]
[1723795668480,22.5205,144.86,144.8,2.07383521]
[1723795668649,22.5205,144.86,144.79,20.0]
[1723795668967,22.5205,144.86,144.8,22.07383249]
[1723795669279,22.5205,144.86,144.8,30.24]
[1723795670006,22.5205,144.86,144.8,20.0]
[1723795674153,37.57529584,144.93,144.85,20.0]
[1723795674154,15.7139,144.89,144.85,20.0]
[1723795674358,15.7139,144.89,144.83,20.0]
[1723795675890,15.7139,144.89,144.84,20.0]
[1723795678803,15.7139,144.89,144.81,20.12549]
[1723795678982,1.72568044,144.88,144.82,20.0]
[1723795679306,8.62813329,144.88,144.82,20.0]
[1723795679807,15.8554,144.85,144.78,2.07374273]
[1723795680008,15.8554,144.85,144.79,22.07374273]
[1723795680186,15.8554,144.85,144.78,22.07374273]
[1723795680387,15.8554,144.85,144.79,2.07374273]
[1723795681199,15.8554,144.85,144.79,20.0]
[1723795681407,15.8554,144.85,144.81,20.0]
[1723795681873,15.8554,144.85,144.83,20.0]
[1723795682094,15.8554,144.85,144.81,20.0]
[1723795682295,15.8554,144.85,144.81,30.24]
[1723795682493,15.8554,144.85,144.84,20.0]
[1723795682675,20.02438194,144.93,144.86,20.0]
[1723795682676,15.8554,144.9,144.86,20.0]
[1723795683393,15.8554,144.9,144.83,10.24]
[1723795683394,15.8554,144.9,144.84,20.0]
[1723795683609,15.8554,144.9,144.86,20.0]
[1723795684002,22.7568,144.9,144.84,20.0]
[1723795684308,22.7568,144.9,144.86,20.0]
[1723795685187,22.7568,144.9,144.83,20.0]
[1723795685806,22.7568,144.9,144.85,20.0]
[1723795686180,15.8554,144.9,144.87,20.0]
[1723795688013,15.8554,144.9,144.84,20.0]
[1723795688915,15.8554,144.9,144.81,22.07364903]
[1723795688916,15.8554,144.9,144.81,2.07364903]
[1723795689083,6.9024,144.88,144.8,20.0]
[1723795689288,0.12549,144.87,144.8,20.0]
[1723795689512,7.02829,144.87,144.8,20.0]
[1723795689813,6.9023,144.88,144.83,20.0]
[1723795690613,6.9023,144.88,144.81,20.0]
[1723795690794,15.98089,144.9,144.82,10.24]
[1723795690795,22.88219,144.9,144.82,10.24]
[1723795690997,22.88219,144.9,144.86,20.0]
[1723795691180,15.8554,144.9,144.86,20.0]
[1723795692389,15.8554,144.9,144.88,20.0]
[1723795693113,15.8554,144.9,144.86,20.0]
[1723795693317,15.8554,144.9,144.87,20.0]
[1723795694790,15.8554,144.9,144.85,20.0]
[1723795695612,15.8554,144.9,144.86,20.0]
[1723795696005,15.8554,144.9,144.85,20.0]
[1723795696624,15.8554,144.9,144.86,20.0]
[1723795696793,15.8554,144.9,144.85,20.0]
[1723795696995,15.8554,144.9,144.86,20.0]
[1723795697809,15.8554,144.9,144.88,20.0]
[1723795698797,15.8554,144.9,144.86,20.0]
[1723795702468,15.8554,144.9,144.85,20.0]
[1723795702622,15.8554,144.9,144.82,22.07323715]
[1723795702825,22.7567,144.9,144.82,20.0]
[1723795703942,15.8554,144.9,144.82,20.0]
[1723795704135,15.8554,144.9,144.84,20.0]
[1723795705009,15.8554,144.9,144.86,20.0]
[1723795708908,15.8554,144.9,144.85,20.0]
[1723795708909,15.8554,144.9,144.89,20.0]
[1723795709113,21.9447,144.94,144.89,20.0]
[1723795709810,21.9447,144.94,144.85,40.0]
[1723795710012,21.9447,144.94,144.88,20.0]
[1723795713333,21.9447,144.94,144.86,20.25098]
[1723795713514,6.9004,144.92,144.87,20.0]
[1723795713720,1.72543622,144.91,144.84,20.0]
[1723795714026,8.62623622,144.91,144.84,20.0]
[1723795714233,15.5841,144.9,144.82,20.0]
[1723795714540,6.9028,144.87,144.81,7.19229979]
[1723795714714,6.9024,144.88,144.81,7.19229979]
[1723795714932,25.76549,144.88,144.81,7.19229979]
[1723795715126,6.9033,144.86,144.79,2.07402221]
[1723795715370,6.9039,144.85,144.78,26.17864969]
[1723795715670,17.64672483,144.84,144.78,20.0]
[1723795716658,15.9204,144.84,144.78,20.0]
[1723795718638,15.9204,144.84,144.76,26.17993886]
[1723795718639,0.12549,144.83,144.76,26.17993886]
[1723795718851,0.12549,144.83,144.77,2.0741977]
[1723795719032,0.12549,144.83,144.76,6.17993886]
[1723795719361,0.12549,144.83,144.77,2.0741999]
[1723795719558,0.12549,144.83,144.76,6.17868095]
[1723795719841,0.12549,144.83,144.77,22.07418861]
[1723795720053,7.03019,144.83,144.77,20.0]
[1723795720732,0.12549,144.83,144.77,20.0]
[1723795721342,0.12549,144.83,144.77,22.07419372]
[1723795722373,0.12549,144.83,144.77,20.0]
[1723795723063,15.9204,144.84,144.79,20.0]
[1723795723640,15.9204,144.84,144.77,20.0]
[1723795724044,15.9204,144.84,144.75,32.83564444]
[1723795724045,15.9204,144.84,144.79,20.0]
[1723795725767,15.9204,144.84,144.81,20.0]
[1723795725940,15.9204,144.84,144.79,20.0]
[1723795726136,15.9204,144.84,144.82,20.0]
[1723795726338,15.9204,144.84,144.78,20.0]
[1723795726559,15.9204,144.84,144.79,20.0]
[1723795726840,15.9204,144.84,144.78,20.0]
[1723795727352,15.9204,144.84,144.77,2.07391773]
[1723795727554,0.12549,144.83,144.77,23.45521704]
[1723795727940,0.12549,144.83,144.77,22.07391773]
[1723795728145,7.03029,144.83,144.77,20.0]
[1723795728567,7.03029,144.83,144.77,21.38120484]
[1723795729955,0.12549,144.83,144.78,20.0]
[1723795730470,22.8247,144.84,144.78,20.0]
[1723795730471,22.8247,144.84,144.78,21.38115285]
[1723795731738,22.8247,144.84,144.78,20.0]
[1723795731942,15.9204,144.84,144.78,20.0]
[1723795732176,15.9204,144.84,144.81,20.0]
[1723795732347,15.9207,144.87,144.82,20.0]
[1723795732543,15.9207,144.87,144.8,20.0]
[1723795732739,15.9207,144.87,144.81,20.0]
[1723795732942,22.8235,144.87,144.81,20.0]
[1723795734865,15.9207,144.87,144.81,20.0]
[1723795735785,0.12549,144.86,144.78,2.07391307]
[1723795735972,0.12549,144.86,144.77,20.12549]
[1723795735973,7.15428,144.86,144.77,20.12549]
[1723795736187,7.15428,144.86,144.77,22.19940307]
[1723795736357,7.15428,144.86,144.77,20.12549]
[1723795736558,7.15428,144.86,144.77,22.19940307]
[1723795736870,7.15428,144.86,144.77,20.12549]
[1723795737067,7.15428,144.86,144.79,20.0]
[1723795737457,7.15428,144.86,144.81,20.0]
[1723795739287,22.8235,144.87,144.81,20.0]
[1723795739497,15.9207,144.87,144.81,20.0]
[1723795739829,15.9207,144.87,144.84,20.0]
[1723795741363,15.171,144.9,144.82,20.0]
[1723795741669,15.171,144.9,144.81,25.76549]
[1723795741670,15.171,144.9,144.84,20.0]
[1723795742657,15.171,144.9,144.83,0.12549]
[1723795743062,22.0723,144.9,144.83,20.0]
[1723795743260,15.171,144.9,144.84,20.0]
[1723795744657,15.171,144.9,144.86,20.0]
[1723795748463,15.171,144.9,144.84,30.26]
[1723795748664,15.171,144.9,144.85,20.0]
[1723795752786,15.171,144.9,144.86,20.0]
[1723795753604,14.9842089,144.9,144.86,20.0]
[1723795756583,1.72543585,144.96,144.89,10.26]
[1723795756788,0.7491,145.0,144.95,20.0]
[1723795756983,0.7491,145.0,144.95,6.8988]
[1723795757187,0.7491,145.0,144.96,6.8983]
[1723795757405,0.7491,145.0,144.97,6.8978]
[1723795758091,0.7491,145.0,144.93,20.0]
[1723795759105,0.7491,145.0,144.91,20.0]
[1723795759290,10.26,144.99,144.91,20.0]
[1723795759610,45.12549,144.98,144.91,20.0]
[1723795759805,45.25098,144.98,144.91,20.0]
[1723795760195,0.12549,144.98,144.91,20.0]
[1723795761009,0.12549,144.98,144.88,6.5068]
[1723795761315,0.12549,144.98,144.9,20.0]
[1723795761618,0.12549,144.98,144.92,20.0]
[1723795761796,0.12549,144.98,144.89,45.62]
[1723795761797,0.25098,144.99,144.9,20.0]
[1723795762002,0.25098,144.99,144.92,20.0]
[1723795762594,0.25098,144.99,144.9,20.0]
[1723795763791,0.25098,144.99,144.92,20.0]
[1723795764601,0.25098,144.99,144.9,20.0]
[1723795764989,0.25098,144.99,144.92,20.0]
[1723795766012,0.12549,144.99,144.92,20.0]
[1723795766240,0.12549,144.99,144.94,20.0]
[1723795766595,0.7491,145.0,144.95,1.37961756]
[1723795766789,0.7491,145.0,144.94,20.0]
[1723795767095,0.7491,145.0,144.96,20.0]
[1723795767520,0.7491,145.0,144.98,20.0]
[1723795769706,0.7491,145.0,144.99,21.37913315]
[1723795769906,0.7491,145.0,144.99,20.0]
[1723795770405,0.7491,145.0,144.99,21.37912947]
[1723795770612,0.7491,145.0,144.99,20.0]
[1723795771401,0.7491,145.0,144.99,20.12549]
[1723795774402,0.7491,145.0,144.99,20.25098]
[1723795774811,0.7491,145.0,144.99,40.25098]
[1723795775025,0.7491,145.0,144.99,40.37647]
[1723795775229,0.7491,145.0,144.99,85.37647]
[1723795775419,0.7491,145.0,144.99,40.37647]
[1723795775823,0.7491,145.0,144.99,40.25098]
[1723795776037,0.7491,145.0,144.99,40.12549]
[1723795777015,0.7491,145.0,144.99,59.95098]
[1723795777421,1.55978833,145.04,145.02,20.0]
[1723795778814,1.55978833,145.04,144.99,40.07647]
[1723795779031,1.55978833,145.04,145.0,0.12549]
[1723795779729,1.55978833,145.04,145.01,20.0]
[1723795779925,1.55978833,145.04,145.02,20.0]
[1723795781130,1.55978833,145.04,145.01,20.0]
[1723795781428,1.55978833,145.04,144.99,20.0]
[1723795782339,1.55978833,145.04,145.01,20.0]
[1723795782726,1.55978833,145.04,144.97,20.0]
[1723795782727,1.55978833,145.04,144.99,20.0]
[1723795782927,1.55978833,145.04,145.0,20.0]
[1723795783258,1.55978833,145.04,144.98,20.0]
[1723795783543,1.55978833,145.04,144.99,20.0]
[1723795785418,1.55978833,145.04,145.01,20.0]
[1723795786019,1.55978833,145.04,145.03,20.0]
[1723795786456,1.55978833,145.04,145.01,20.0]
[1723795787382,1.55978833,145.04,145.03,20.0]
[1723795788229,1.55978833,145.04,145.01,20.0]
[1723795788448,1.55978833,145.04,145.02,20.0]
[1723795789354,1.55978833,145.04,145.03,20.0]
[1723795789859,1.55978833,145.04,145.02,20.0]
[1723795790028,1.55978833,145.04,144.99,20.0]
[1723795790225,1.55978833,145.04,145.01,20.0]
[1723795793024,1.55978833,145.04,145.03,20.0]
[1723795793223,1.55978833,145.04,145.01,20.0]
[1723795793730,1.55978833,145.04,145.03,20.0]
[1723795795360,1.55978833,145.04,145.0,20.12549]
[1723795795361,1.55978833,145.04,145.01,20.0]
[1723795798844,1.55978833,145.04,145.0,20.0]
[1723795800860,1.55978833,145.04,144.99,20.0]
[1723795802134,1.55978833,145.04,144.98,20.0]
[1723795802135,8.45448833,145.04,144.98,20.0]
[1723795802378,0.12549,145.03,144.97,7.20929103]
[1723795802552,0.12549,145.03,144.98,20.0]
[1723795802739,7.02059,145.03,144.97,7.20929103]
[1723795803150,17.25059,145.03,144.97,7.20929103]
[1723795803570,0.12549,145.03,144.98,20.0]
[1723795803771,8.45448833,145.04,144.98,20.0]
[1723795803772,8.45458833,145.04,144.98,20.0]
[1723795803975,7.02059,145.03,144.98,20.0]
[1723795804272,0.12549,145.03,144.98,20.0]
[1723795804772,8.45458833,145.04,144.98,20.0]
[1723795805575,7.02059,145.03,144.97,7.20929103]
[1723795807271,6.8956,145.02,144.97,7.20929103]
[1723795807573,6.8962,145.01,144.97,7.20929103]
[1723795807872,0.12549,145.03,144.98,21.37937126]
[1723795808047,1.55978833,145.04,144.98,20.0]
[1723795808440,8.45468833,145.04,144.98,20.0]
[1723795809596,1.55978833,145.04,144.97,10.23]
[1723795809765,1.55978833,145.04,144.98,20.0]
[1723795810180,1.55978833,145.04,144.98,40.0]
[1723795810582,1.55978833,145.04,145.0,20.0]
[1723795811467,1.55978833,145.04,144.98,40.0]
[1723795813088,1.55978833,145.04,145.0,20.0]
[1723795814690,1.55978833,145.04,144.98,40.0]
[1723795816395,1.55978833,145.04,145.0,20.0]
[1723795817262,1.55978833,145.04,144.98,40.0]
[1723795817480,1.55978833,145.04,144.99,2.07131652]
[1723795817694,1.55978833,145.04,144.98,40.0]
[1723795817897,1.55978833,145.04,144.99,2.07132912]
[1723795818194,1.55978833,145.04,145.0,20.0]
[1723795818986,1.55978833,145.04,144.98,40.0]
[1723795819504,1.55978833,145.04,145.0,20.0]
[1723795820866,1.55978833,145.04,145.02,20.0]
[1723795821295,1.55978833,145.04,145.0,22.07120824]
[1723795821473,1.55978833,145.04,145.01,20.0]
[1723795822579,1.55978833,145.04,145.02,20.0]
[1723795822778,1.55978833,145.04,145.01,20.0]
[1723795825374,1.55978833,145.04,144.97,2.09033075]
[1723795825591,1.55978833,145.04,144.98,28.25224211]
[1723795825791,1.55978833,145.04,144.98,26.18090655]
[1723795826506,1.55978833,145.04,144.99,2.07133588]
[1723795826700,1.55978833,145.04,144.98,20.0]
[1723795827005,1.55978833,145.04,144.99,2.07134463]
[1723795827212,10.35549,145.03,144.96,29.30016599]
[1723795827417,10.35549,145.03,144.97,2.07159598]
[1723795827418,17.25089,145.03,144.97,2.07159598]
[1723795827621,10.23,145.01,144.94,22.09341981]
[1723795827905,25.3235,145.01,144.95,8.25566361]
[1723795828120,25.3235,145.01,144.96,2.0717384]
[1723795828275,15.0935,145.01,144.94,39.46060845]
[1723795828495,15.0935,145.01,144.94,27.207995]
[1723795828702,15.0935,145.01,144.96,20.0]
[1723795829905,15.0935,145.01,144.98,20.0]
[1723795830577,15.0935,145.01,144.96,20.0]
[1723795830772,15.0935,145.01,144.97,2.07160521]
[1723795830977,1.55978833,145.04,145.0,20.0]
[1723795831177,1.55978833,145.04,145.01,20.0]
[1723795831612,1.55978833,145.04,144.98,20.0]
[1723795831776,1.55978833,145.04,144.99,20.0]
[1723795831978,1.55978833,145.04,145.01,20.0]
[1723795832482,1.55978833,145.04,144.99,20.0]
[1723795833923,1.55978833,145.04,145.01,20.0]
[1723795834422,1.55978833,145.04,144.99,20.0]
[1723795835518,1.55978833,145.04,145.02,20.0]
[1723795835718,1.55978833,145.04,145.0,20.0]
[1723795837292,1.55978833,145.04,144.99,20.0]
[1723795838920,1.55978833,145.04,144.98,20.0]
[1723795839110,1.55978833,145.04,145.01,20.0]
[1723795839313,1.55978833,145.04,145.02,20.0]
[1723795839489,1.55978833,145.04,144.99,22.07129261]
[1723795839822,1.55978833,145.04,145.0,20.0]
[1723795841297,1.55978833,145.04,145.01,20.0]
[1723795842107,1.55978833,145.04,145.0,20.0]
[1723795844398,1.55978833,145.04,144.97,20.0]
[1723795844613,0.12549,145.03,144.98,2.0714585]
[1723795844818,0.12549,145.03,144.97,20.0]
[1723795844998,0.12549,145.03,144.99,20.0]
[1723795845320,1.55978833,145.04,144.99,20.0]
[1723795847537,1.55978833,145.04,144.97,20.0]
[1723795847538,3.28374277,145.04,144.97,20.0]
[1723795847721,3.28374277,145.04,144.98,38.41571087]